bitfinex/quotes_SOLUSD_20260305
["timestamp","ask_amount","ask_price","bid_price","bid_amount"]
[1772750382729,11.20975697,89.208,89.178,0.49307771]
[1772750382954,11.72439751,89.208,89.178,0.49307771]
[1772750384349,11.72439751,89.208,89.18,0.49307771]
[1772750385240,0.51464054,89.207,89.18,0.49307771]
[1772750387228,11.72464883,89.206,89.18,0.49307771]
[1772750391432,11.21000829,89.206,89.18,0.49307771]
[1772750391645,0.51464054,89.205,89.18,0.49307771]
[1772750392857,11.20975697,89.208,89.18,0.49307771]
[1772750393339,11.72439751,89.208,89.18,0.49307771]
[1772750394074,0.51464054,89.207,89.18,0.49307771]
[1772750395338,0.51464054,89.207,89.145,0.49307771]
[1772750395556,0.51464054,89.189,89.145,0.49307771]
[1772750396076,0.51464054,89.187,89.145,0.49307771]
[1772750396744,0.51464054,89.179,89.131,0.49307771]
[1772750397150,0.51464054,89.169,89.131,0.49307771]
[1772750398347,0.51464054,89.167,89.131,0.49307771]
[1772750400162,0.4869266,89.158,89.101,0.82860869]
[1772750400353,44.85898145,89.169,89.101,0.82860869]
[1772750400354,0.4869266,89.156,89.101,0.82860869]
[1772750400864,0.4869266,89.185,89.112,0.14216157]
[1772750401043,0.4869266,89.185,89.114,3.69383402]
[1772750401458,0.4869266,89.185,89.111,39.27685694]
[1772750401459,0.4869266,89.185,89.12,0.28432314]
[1772750402051,0.4869266,89.185,89.132,4.82477569]
[1772750402240,0.4869266,89.211,89.139,0.47542011]
[1772750402444,0.4869266,89.209,89.145,4.82477569]
[1772750402660,0.4869266,89.209,89.144,0.47542011]
[1772750402661,0.4869266,89.209,89.155,0.47542011]
[1772750403547,0.4869266,89.207,89.158,0.47542011]
[1772750408065,0.4869266,89.205,89.161,0.47542011]
[1772750411379,0.4869266,89.203,89.164,0.47542011]
[1772750412756,0.4869266,89.203,89.148,0.47542011]
[1772750413271,56.0447179,89.215,89.151,0.47542011]
[1772750413272,0.4869266,89.201,89.151,0.47542011]
[1772750413475,0.4869266,89.201,89.154,0.47542011]
[1772750414974,0.4869266,89.199,89.157,0.47542011]
[1772750417464,0.4869266,89.197,89.16,0.47542011]
[1772750423268,0.4869266,89.195,89.163,0.47542011]
[1772750426288,0.4869266,89.193,89.165,0.47542011]
[1772750428192,11.21151646,89.194,89.165,0.47542011]
[1772750428371,11.21101369,89.198,89.167,0.47542011]
[1772750428771,0.4869266,89.197,89.167,0.47542011]
[1772750432773,0.4869266,89.197,89.143,61.9]
[1772750432774,0.50203785,89.209,89.17,0.51437028]
[1772750437595,0.50203785,89.209,89.172,0.28432314]
[1772750437901,0.50203785,89.207,89.173,0.51437028]
[1772750439908,0.50203785,89.212,89.175,0.51437028]
[1772750442607,0.50203785,89.222,89.178,0.51437028]
[1772750443699,0.50203785,89.236,89.185,0.51437028]
[1772750444814,0.50203785,89.236,89.188,0.51437028]
[1772750445798,11.20636521,89.235,89.188,0.51437028]
[1772750446108,0.50203785,89.234,89.191,0.51437028]
[1772750452516,0.50203785,89.232,89.194,0.51437028]
[1772750454817,0.50203785,89.23,89.196,0.51437028]
[1772750460030,0.51149195,89.228,89.198,0.50975948]
[1772750461326,0.51149195,89.27,89.204,0.50975948]
[1772750462121,0.51149195,89.268,89.207,0.50975948]
[1772750464604,0.51149195,89.266,89.21,0.50975948]
[1772750464801,0.51149195,89.266,89.211,1.30299506]
[1772750465011,0.51149195,89.266,89.213,0.50975948]
[1772750465518,0.51149195,89.266,89.215,0.50975948]
[1772750465914,0.51149195,89.266,89.217,0.50975948]
[1772750466115,0.51149195,89.266,89.22,0.50975948]
[1772750466310,0.51149195,89.266,89.211,3.69383402]
[1772750466311,0.51149195,89.266,89.224,0.50975948]
[1772750466516,0.51149195,89.266,89.227,0.50975948]
[1772750466722,0.51149195,89.266,89.23,0.50975948]
[1772750470219,0.51149195,89.266,89.233,0.50975948]
[1772750470554,0.51149195,89.266,89.235,0.50975948]
[1772750470730,0.51149195,89.266,89.236,0.50975948]
[1772750470910,0.51149195,89.266,89.237,0.50975948]
[1772750471111,0.51149195,89.266,89.238,11.20598848]
[1772750471414,27.99927912,89.289,89.239,0.50975948]
[1772750471620,0.51149195,89.287,89.24,0.50975948]
[1772750472122,0.51149195,89.289,89.243,0.50975948]
[1772750472338,0.51149195,89.289,89.244,0.50975948]
[1772750472641,0.2,89.31,89.257,0.50975948]
[1772750472840,0.2,89.31,89.263,0.50975948]
[1772750473142,11.39696533,89.31,89.263,0.50975948]
[1772750473426,11.39696533,89.31,89.265,0.50975948]
[1772750473612,39.3893514,89.31,89.265,0.50975948]
[1772750474620,0.49331202,89.309,89.265,0.50975948]
[1772750475437,0.49298651,89.307,89.267,0.50975948]
[1772750477608,11.19745593,89.306,89.269,0.50975948]
[1772750477944,11.1970798,89.309,89.27,0.50975948]
[1772750478230,11.1970798,89.309,89.268,39.20777882]
[1772750478231,0.1,89.32,89.275,0.50975948]
[1772750478735,0.51149195,89.359,89.294,3.69383402]
[1772750478918,0.51149195,89.358,89.307,0.50975948]
[1772750480240,0.51149195,89.348,89.289,11.19958785]
[1772750480451,0.51149195,89.348,89.286,0.50975948]
[1772750480615,0.51149195,89.338,89.264,0.50975948]
[1772750480814,0.51149195,89.328,89.264,0.50975948]
[1772750481022,0.51149195,89.328,89.265,0.50975948]
[1772750481818,0.51149195,89.326,89.266,11.71223298]
[1772750482028,0.51149195,89.326,89.267,0.50975948]
[1772750482423,0.51149195,89.319,89.26,11.71290731]
[1772750482627,0.51149195,89.308,89.247,0.50975948]
[1772750482839,0.51149195,89.308,89.261,50.09925751]
[1772750483644,0.28432314,89.299,89.237,0.51319416]
[1772750483944,3.69383402,89.317,89.236,1.50806123]
[1772750483945,0.28432314,89.289,89.236,1.50806123]
[1772750484929,4.24203863,89.28,89.236,1.50806123]
[1772750485225,0.28432314,89.269,89.218,0.51319416]
[1772750486341,39.20777882,89.268,89.218,0.51319416]
[1772750486636,39.20777882,89.268,89.211,0.51319416]
[1772750486838,4.24203863,89.26,89.211,0.51319416]
[1772750488546,39.21173214,89.259,89.211,0.51319416]
[1772750489542,39.21173214,89.259,89.213,0.51319416]
[1772750490448,11.20222252,89.268,89.215,0.51319416]
[1772750490630,28.00260338,89.278,89.217,0.51319416]
[1772750490826,0.28432314,89.299,89.217,0.51319416]
[1772750491145,0.28432314,89.296,89.217,0.51319416]
[1772750491330,0.28432314,89.296,89.219,0.51319416]
[1772750492661,0.28432314,89.294,89.224,0.51319416]
[1772750492864,0.28432314,89.294,89.225,0.51319416]
[1772750495138,0.28432314,89.292,89.227,0.51319416]
[1772750496334,39.19680153,89.293,89.228,0.51319416]
[1772750496650,39.19680153,89.293,89.231,0.51319416]
[1772750497764,159.98592105,89.309,89.214,4.82477569]
[1772750497765,0.28432314,89.305,89.234,0.51319416]
[1772750499870,0.28432314,89.303,89.236,0.51319416]
[1772750500968,39.19197347,89.304,89.237,0.51319416]
[1772750501131,11.19645296,89.314,89.254,3.69383402]
[1772750501335,11.19281868,89.343,89.268,0.51319416]
[1772750501638,11.19281868,89.343,89.294,0.51319416]
[1772750501834,27.98139905,89.346,89.296,0.7975173]
[1772750502062,27.98139905,89.346,89.295,39.19592362]
[1772750502063,27.98139905,89.346,89.299,0.51319416]
[1772750502465,27.98139905,89.346,89.3,0.51319416]
[1772750503167,27.98139905,89.346,89.302,0.51319416]
[1772750505863,27.98139905,89.346,89.304,0.51319416]
[1772750506438,11.19181654,89.351,89.305,0.51319416]
[1772750508551,3.69383402,89.367,89.307,0.51319416]
[1772750508752,0.28432314,89.359,89.307,0.51319416]
[1772750508957,0.28432314,89.339,89.288,0.51319416]
[1772750509140,0.28432314,89.329,89.257,0.51319416]
[1772750509334,4.24203863,89.32,89.258,0.51319416]
[1772750509535,3.69383402,89.357,89.258,0.51319416]
[1772750509536,0.28432314,89.309,89.258,0.51319416]
[1772750510641,39.19021811,89.308,89.258,0.51319416]
[1772750510931,39.19021811,89.308,89.201,1.12106366]
[1772750510932,0.28432314,89.299,89.247,0.51319416]
[1772750512137,11.35127757,89.29,89.24,0.51319416]
[1772750512331,11.35127757,89.29,89.233,11.206492]
[1772750512332,0.28432314,89.289,89.233,0.51319416]
[1772750512532,11.35127757,89.27,89.217,0.51319416]
[1772750512738,84.00725821,89.278,89.216,1.09995534]
[1772750512739,11.35127757,89.26,89.216,1.09995534]
[1772750513168,0.28432314,89.269,89.216,1.09995534]
[1772750513543,0.28432314,89.269,89.215,0.51319416]
[1772750513760,11.35127757,89.26,89.21,11.20948697]
[1772750514262,11.35127757,89.26,89.211,0.51319416]
[1772750514458,11.36496436,89.26,89.211,0.51319416]
[1772750514652,39.21173214,89.259,89.213,0.51319416]
[1772750516863,28.0083801,89.259,89.213,0.51319416]
[1772750517651,28.0083801,89.259,89.016,43.25755035]
[1772750517652,0.28432314,89.249,89.19,0.51319416]
[1772750518039,0.28432314,89.249,89.149,1.12171757]
[1772750518040,11.36496436,89.23,89.18,0.51319416]
[1772750518239,0.28432314,89.229,89.18,0.51319416]
[1772750518460,11.36496436,89.22,89.18,0.51319416]
[1772750518861,39.22931213,89.219,89.18,0.51319416]
[1772750519059,39.22931213,89.219,89.182,0.51319416]
[1772750521360,3.69383402,89.242,89.184,0.51319416]
[1772750521569,0.28432314,89.241,89.184,0.51319416]
[1772750521769,0.28432314,89.239,89.184,0.51319416]
[1772750522670,39.22095968,89.238,89.184,0.51319416]
[1772750525172,39.22095968,89.238,89.186,0.51319416]
[1772750525684,11.20473287,89.248,89.186,0.51319416]
[1772750525974,11.20473287,89.248,89.193,0.51319416]
[1772750526188,11.20473287,89.248,89.194,0.51319416]
[1772750526970,0.28432314,89.273,89.197,0.51319416]
[1772750531075,0.28432314,89.271,89.2,0.51319416]
[1772750534686,0.28432314,89.269,89.203,0.51319416]
[1772750536256,39.2069004,89.27,89.203,0.51319416]
[1772750536463,28.00492886,89.27,89.204,39.23590869]
[1772750536661,28.00492886,89.27,89.205,0.51319416]
[1772750538176,0.28432314,89.269,89.205,0.51319416]
[1772750538387,0.50570271,89.239,89.167,11.21491134]
[1772750538591,0.50570271,89.229,89.167,39.2521897]
[1772750539091,0.50570271,89.229,89.168,0.28432314]
[1772750539784,0.50570271,89.227,89.17,0.28432314]
[1772750540382,0.50570271,89.227,89.171,0.49795288]
[1772750542389,0.50570271,89.225,89.174,0.49795288]
[1772750542888,0.50570271,89.225,89.16,0.2]
[1772750542889,0.50570271,89.199,89.16,0.2]
[1772750543186,0.28432314,89.225,89.09,0.2]
[1772750543187,0.31541003,89.188,89.132,0.49795288]
[1772750543387,0.31541003,89.178,89.127,0.49795288]
[1772750543593,0.31541003,89.178,89.131,0.49795288]
[1772750544379,0.28432314,89.179,89.131,0.49795288]
[1772750544380,0.31508148,89.176,89.131,0.49795288]
[1772750547508,11.21390524,89.175,89.133,0.49795288]
[1772750548488,0.3138046,89.18,89.135,0.49795288]
[1772750553294,0.3138046,89.18,89.13,0.2]
[1772750553295,28.02219695,89.215,89.145,0.48152635]
[1772750553493,0.31170723,89.214,89.145,0.48152635]
[1772750553704,0.31170723,89.214,89.149,3.69383402]
[1772750553876,0.31170723,89.214,89.154,0.48152635]
[1772750555093,11.20774679,89.224,89.158,3.69383402]
[1772750555291,11.20774679,89.224,89.164,0.48152635]
[1772750555596,11.20774679,89.224,89.168,0.48152635]
[1772750556192,11.20713883,89.229,89.168,0.48152635]
[1772750556392,0.310859,89.238,89.177,0.48152635]
[1772750557204,11.20611405,89.237,89.18,0.48152635]
[1772750557382,11.51669677,89.237,89.18,0.48152635]
[1772750558277,0.31030962,89.236,89.18,0.48152635]
[1772750561403,0.309509,89.234,89.183,0.48152635]
[1772750562099,11.20636521,89.235,89.183,0.48152635]
[1772750562986,11.20473287,89.248,89.185,0.48152635]
[1772750563183,0.30924823,89.247,89.185,0.48152635]
[1772750565212,11.20498397,89.246,89.19,0.48152635]
[1772750565405,11.20498397,89.246,89.191,0.48152635]
[1772750565603,11.51346773,89.246,89.191,0.48152635]
[1772750565794,0.30848376,89.245,89.191,0.48152635]
[1772750565994,11.20498397,89.246,89.191,0.48152635]
[1772750566396,11.51321873,89.246,89.191,0.48152635]
[1772750566595,0.30823476,89.245,89.191,0.48152635]
[1772750568417,0.30774533,89.243,89.194,0.48152635]
[1772750570496,0.30726707,89.241,89.196,0.48152635]
[1772750571218,0.30726707,89.241,89.198,0.48152635]
[1772750573141,11.20573733,89.24,89.2,0.48152635]
[1772750574524,0.30634307,89.245,89.202,0.48152635]
[1772750574721,0.30634307,89.245,89.203,0.48152635]
[1772750577818,11.20523508,89.244,89.204,39.23590869]
[1772750578022,0.30567756,89.243,89.205,0.48152635]
[1772750578420,11.20523508,89.244,89.205,0.48152635]
[1772750580215,0.3054608,89.249,89.205,0.48152635]
[1772750580416,39.21656506,89.248,89.207,0.48825586]
[1772750581031,11.20473287,89.248,89.207,0.48825586]
[1772750581235,0.30461837,89.247,89.207,0.48825586]
[1772750582411,11.20498397,89.246,89.209,0.48825586]
[1772750584433,0.30401161,89.245,89.211,0.48825586]
[1772750587841,56.00802815,89.273,89.206,28.02502073]
[1772750587842,0.30342552,89.243,89.213,0.48825586]
[1772750589136,0.30323463,89.249,89.215,0.48825586]
[1772750595039,11.50686731,89.248,89.215,0.48825586]
[1772750595246,0.30195837,89.247,89.215,0.48825586]
[1772750595438,0.30195837,89.247,89.217,0.48825586]
[1772750600243,0.30127411,89.245,89.217,0.48825586]
[1772750601345,11.20523508,89.244,89.217,0.48825586]
[1772750601643,11.20523508,89.244,89.218,0.48825586]
[1772750602221,0.30127411,89.245,89.218,0.48825586]
[1772750602919,11.20463618,89.249,89.207,39.23458921]
[1772750602920,11.20463618,89.249,89.219,0.50723414]
[1772750603448,0.14216157,89.275,89.221,0.50723414]
[1772750605829,39.20426542,89.276,89.223,0.50723414]
[1772750608436,39.20426542,89.276,89.224,11.20774679]
[1772750608637,39.20426542,89.276,89.225,0.50723414]
[1772750608822,39.20426542,89.276,89.205,0.28432314]
[1772750609025,0.28432314,89.249,89.202,1.31046075]
[1772750609737,0.28432314,89.239,89.202,1.31046075]
[1772750610432,39.22095968,89.238,89.202,1.31046075]
[1772750614532,39.22095968,89.238,89.192,0.50723414]
[1772750615252,39.22095968,89.238,89.197,0.50723414]
[1772750617649,39.22095968,89.238,89.198,0.50723414]
[1772750622649,39.22095968,89.238,89.2,0.50723414]
[1772750624350,0.28432314,89.255,89.202,0.50723414]
[1772750626556,0.28432314,89.253,89.204,0.50723414]
[1772750627057,39.21392878,89.254,89.204,0.50723414]
[1772750627264,11.20397965,89.254,89.205,0.50723414]
[1772750627641,4.2417334,89.29,89.207,0.50723414]
[1772750627961,0.14216157,89.279,89.208,0.50723414]
[1772750628135,0.28432314,89.277,89.208,0.50723414]
[1772750628851,0.28432314,89.269,89.21,0.50723414]
[1772750630258,0.28432314,89.249,89.195,0.50723414]
[1772750630962,39.21656506,89.248,89.197,0.50723414]
[1772750631156,0.28432314,89.247,89.197,0.50723414]
[1772750632940,0.28432314,89.245,89.191,0.50723414]
[1772750633142,0.28432314,89.239,89.18,0.50723414]
[1772750633543,4.2417334,89.23,89.18,0.50723414]
[1772750633763,0.28432314,89.229,89.156,0.50723414]
[1772750635158,0.28432314,89.229,89.133,3.69383402]
[1772750635159,0.28432314,89.219,89.158,0.50723414]
[1772750635468,0.28432314,89.209,89.158,0.50723414]
[1772750635759,0.28432314,89.209,89.11,0.2]
[1772750635760,0.28432314,89.209,89.152,0.50723414]
[1772750636068,0.28432314,89.199,89.145,0.50723414]
[1772750636264,0.28432314,89.199,89.152,0.50723414]
[1772750636672,0.28432314,89.199,89.135,28.04713849]
[1772750636873,0.28432314,89.199,89.152,0.50723414]
[1772750637072,39.23854793,89.198,89.152,0.50723414]
[1772750637365,95.29361642,89.198,89.152,0.50723414]
[1772750638156,39.23854793,89.198,89.152,0.50723414]
[1772750643569,39.23854793,89.198,89.154,0.50723414]
[1772750644151,11.20736996,89.227,89.155,0.50723414]
[1772750644356,104.0,89.242,89.161,0.50723414]
[1772750644549,39.22052016,89.239,89.164,0.50723414]
[1772750644987,39.22052016,89.239,89.174,0.50723414]
[1772750645355,11.20473287,89.248,89.226,0.50723414]
[1772750645660,5.84526969,89.284,89.226,0.50723414]
[1772750645863,28.28642889,89.279,89.226,0.50723414]
[1772750646656,39.20294805,89.279,89.228,0.50723414]
[1772750646863,0.28432314,89.278,89.228,0.50723414]
[1772750648177,0.28432314,89.276,89.228,0.50723414]
[1772750650560,0.28432314,89.274,89.228,0.50723414]
[1772750652955,0.28432314,89.272,89.228,0.50723414]
[1772750655275,0.28432314,89.27,89.228,0.50723414]
[1772750656792,0.28432314,89.268,89.228,0.50723414]
[1772750658166,0.28432314,89.268,89.187,3.69383402]
[1772750658167,0.49146593,89.267,89.166,3.69383402]
[1772750658375,0.49146593,89.267,89.163,56.07707232]
[1772750658376,0.49146593,89.258,89.167,4.82477569]
[1772750658690,0.49146593,89.248,89.168,0.28432314]
[1772750659263,0.49146593,89.246,89.174,0.28432314]
[1772750659879,0.49146593,89.246,89.174,0.14216157]
[1772750660394,0.49146593,89.246,89.175,0.49088221]
[1772750662291,0.49146593,89.244,89.177,0.49088221]
[1772750662594,0.49146593,89.243,89.177,0.49088221]
[1772750664474,0.49146593,89.24,89.179,0.49088221]
[1772750667396,4.24730142,89.25,89.181,0.49088221]
[1772750667397,0.49146593,89.237,89.181,0.49088221]
[1772750668095,0.49146593,89.228,89.165,11.21512798]
[1772750668283,0.49146593,89.218,89.135,39.26628147]
[1772750668797,0.49146593,89.218,89.139,0.28432314]
[1772750669387,0.49146593,89.218,89.135,39.26628147]
[1772750669690,0.47377856,89.215,89.14,0.28432314]
[1772750670195,0.47377856,89.215,89.141,0.46508764]
[1772750671672,0.47377856,89.215,89.138,3.69383402]
[1772750671673,0.454728,89.212,89.144,0.46508764]
[1772750672376,0.454728,89.209,89.144,0.46508764]
[1772750673797,0.454728,89.203,89.146,0.46508764]
[1772750676593,3.69383402,89.205,89.134,1.2018129]
[1772750676594,0.454728,89.2,89.148,0.46508764]
[1772750678391,39.69283604,89.199,89.15,0.46508764]
[1772750678601,39.23810804,89.199,89.15,0.46508764]
[1772750679878,0.454728,89.2,89.152,0.46508764]
[1772750681093,0.454728,89.208,89.152,0.46508764]
[1772750681302,39.23239026,89.212,89.154,0.46508764]
[1772750681506,39.23239026,89.212,89.155,0.46508764]
[1772750681975,0.454728,89.209,89.158,0.46508764]
[1772750684788,0.454728,89.207,89.161,0.46508764]
[1772750687698,0.454728,89.205,89.164,0.46508764]
[1772750689477,11.21000829,89.206,89.165,3.69383402]
[1772750689680,0.454728,89.21,89.168,0.46508764]
[1772750691906,0.454728,89.21,89.153,4.82477569]
[1772750691907,0.454728,89.208,89.17,0.46508764]
[1772750694213,0.454728,89.206,89.172,0.46508764]
[1772750695906,0.454728,89.204,89.174,0.46508764]
[1772750698797,28.0212593,89.218,89.176,0.46508764]
[1772750699001,4.24596364,89.25,89.176,0.46508764]
[1772750699002,0.454728,89.216,89.176,0.46508764]
[1772750701510,0.46126761,89.214,89.176,0.46508764]
[1772750701721,0.46126761,89.214,89.177,0.46049992]
[1772750702314,0.46126761,89.214,89.178,0.46049992]
[1772750703258,0.46126761,89.232,89.178,0.46049992]
[1772750703394,11.20674197,89.232,89.183,4.82477569]
[1772750703711,0.46126761,89.252,89.193,0.46049992]
[1772750704314,11.20410518,89.253,89.196,3.69383402]
[1772750704611,0.46126761,89.257,89.205,0.46049992]
[1772750705112,0.46126761,89.254,89.205,0.46049992]
[1772750705823,0.46126761,89.254,89.185,0.14216157]
[1772750705824,0.46126761,89.252,89.207,0.46049992]
[1772750707520,0.46126761,89.25,89.207,0.46049992]
[1772750707826,0.46126761,89.25,89.208,0.46049992]
[1772750709521,0.46126761,89.247,89.156,8.51860971]
[1772750710300,0.46126761,89.247,89.156,4.82477569]
[1772750710500,0.46126761,89.247,89.157,0.28432314]
[1772750711434,0.46126761,89.247,89.165,8.97910963]
[1772750711634,0.46126761,89.245,89.176,0.46049992]
[1772750716315,0.46126761,89.243,89.182,0.46049992]
[1772750717635,0.46126761,89.241,89.185,0.46049992]
[1772750725035,0.46126761,89.239,89.187,0.46049992]
[1772750725626,0.46126761,89.239,89.189,0.46049992]
[1772750725826,0.46126761,89.239,89.19,0.46049992]
[1772750726032,0.46126761,89.239,89.191,0.46049992]
[1772750726339,0.46126761,89.237,89.193,0.46049992]
[1772750726930,0.46126761,89.237,89.194,0.46049992]
[1772750727129,0.46126761,89.255,89.198,4.82477569]
[1772750727330,0.46126761,89.285,89.207,0.46049992]
[1772750727528,0.46126761,89.284,89.207,0.46049992]
[1772750728344,0.46126761,89.281,89.213,0.46049992]
[1772750730951,0.49868665,89.278,89.215,0.49273766]
[1772750732939,0.49868665,89.276,89.217,0.49273766]
[1772750733162,0.49868665,89.269,89.217,0.49273766]
[1772750734559,0.49868665,89.269,89.216,11.20875179]
[1772750734761,0.49868665,89.268,89.216,11.20875179]
[1772750734948,0.49868665,89.266,89.217,0.49273766]
[1772750735636,0.49868665,89.258,89.196,11.70400273]
[1772750735856,0.49868665,89.258,89.196,11.21126507]
[1772750736035,3.69383402,89.257,89.196,11.21126507]
[1772750736234,0.49868665,89.248,89.193,0.49273766]
[1772750736635,0.49868665,89.248,89.194,0.49273766]
[1772750737040,0.49868665,89.245,89.192,1.25066095]
[1772750737444,0.49868665,89.242,89.192,1.25066095]
[1772750738856,3.69383402,89.244,89.192,1.25066095]
[1772750738857,0.49868665,89.238,89.192,1.25066095]
[1772750739364,0.49868665,89.236,89.193,0.49273766]
[1772750740856,0.49868665,89.236,89.193,11.21164216]
[1772750741055,0.49868665,89.236,89.194,0.49273766]
[1772750741575,0.49868665,89.234,89.196,0.49273766]
[1772750743657,0.49868665,89.232,89.198,0.49273766]
[1772750744458,10.74611646,89.233,89.199,0.49273766]
[1772750744762,10.74611646,89.233,89.197,11.21113938]
[1772750744763,0.49868665,89.255,89.202,0.49273766]
[1772750745371,0.49868665,89.255,89.205,0.49273766]
[1772750745756,0.49868665,89.255,89.208,0.49273766]
[1772750745757,11.20397965,89.254,89.208,0.49273766]
[1772750746861,11.7026663,89.254,89.208,0.49273766]
[1772750748668,11.7026663,89.254,89.21,0.49273766]
[1772750748874,0.49868665,89.254,89.211,0.49273766]
[1772750749058,11.2034209,89.259,89.211,0.49273766]
[1772750749865,0.49868665,89.258,89.211,0.49273766]
[1772750750965,0.49868665,89.256,89.214,0.49273766]
[1772750756470,0.49868665,89.254,89.216,0.49273766]
[1772750758360,28.00439934,89.272,89.204,0.28432314]
[1772750758361,0.49868665,89.252,89.221,0.49273766]
[1772750759369,0.49868665,89.252,89.213,0.49273766]
[1772750759560,0.49868665,89.252,89.202,0.49273766]
[1772750759880,0.49868665,89.252,89.159,44.86318605]
[1772750759881,0.47900411,89.248,89.193,0.49196554]
[1772750760190,0.47900411,89.238,89.181,0.49196554]
[1772750760370,0.47900411,89.236,89.184,11.2127241]
[1772750760758,0.47900411,89.236,89.181,0.49196554]
[1772750760954,0.47900411,89.236,89.193,0.49196554]
[1772750762789,0.47900411,89.234,89.193,0.49196554]
[1772750763373,11.68478731,89.24,89.195,0.49196554]
[1772750763568,0.47900411,89.24,89.196,0.49196554]
[1772750764260,0.47900411,89.244,89.196,0.49196554]
[1772750764875,0.47900411,89.244,89.199,0.49196554]
[1772750766082,11.68432089,89.244,89.199,0.49196554]
[1772750766692,0.47900411,89.244,89.201,0.14216157]
[1772750766868,0.47900411,89.244,89.205,0.49196554]
[1772750768884,0.47900411,89.244,89.207,0.49196554]
[1772750770681,0.47900411,89.25,89.209,0.49196554]
[1772750771692,0.47900411,89.248,89.211,0.49196554]
[1772750773465,0.47900411,89.248,89.212,0.49196554]
[1772750773670,0.47900411,89.266,89.215,0.49196554]
[1772750780773,0.47900411,89.264,89.217,0.49196554]
[1772750782701,0.47900411,89.262,89.219,0.49196554]
[1772750789807,0.46621684,89.26,89.221,0.46923108]
[1772750792700,0.46621684,89.258,89.223,0.46923108]
[1772750795907,0.46621684,89.256,89.224,11.67697787]
[1772750796309,0.46621684,89.256,89.225,0.46923108]
[1772750798104,0.46621684,89.254,89.226,11.67672665]
[1772750798302,0.46621684,89.254,89.227,0.46923108]
[1772750800209,0.46621684,89.252,89.221,0.46923108]
[1772750800906,0.46621684,89.252,89.205,0.46923108]
[1772750801406,0.46621684,89.252,89.203,39.23634855]
[1772750802714,0.46621684,89.25,89.204,0.46923108]
[1772750804702,0.46621684,89.25,89.193,39.24074758]
[1772750804703,0.46621684,89.25,89.206,0.46923108]
[1772750805014,0.46621684,89.248,89.206,0.46923108]
[1772750807708,0.46621684,89.246,89.208,0.46923108]
[1772750807906,0.46621684,89.246,89.209,0.46923108]
[1772750810817,0.46621684,89.246,89.211,0.46923108]
[1772750811023,0.46621684,89.246,89.212,0.46923108]
[1772750813911,0.46621684,89.246,89.215,0.46923108]
[1772750816722,0.46621684,89.246,89.217,0.46923108]
[1772750819728,0.46621684,89.246,89.219,0.49563192]
[1772750821303,0.49257224,89.245,89.203,39.73198047]
[1772750821527,0.49257224,89.245,89.203,39.23634855]
[1772750821721,0.49257224,89.245,89.203,11.2103853]
[1772750821908,0.49257224,89.245,89.203,11.00952726]
[1772750823115,0.49257224,89.243,89.194,28.02862116]
[1772750823345,0.49257224,89.243,89.194,28.52425308]
[1772750823730,0.49257224,89.243,89.195,0.49563192]
[1772750828917,0.49257224,89.241,89.197,0.49563192]
[1772750832837,11.20573733,89.24,89.198,39.23854793]
[1772750833039,0.49257224,89.239,89.199,0.49563192]
[1772750837425,0.49257224,89.239,89.201,0.49563192]
[1772750837627,0.49257224,89.243,89.201,0.49563192]
[1772750838326,28.0106519,89.252,89.202,0.49563192]
[1772750838530,39.21524688,89.251,89.202,0.49563192]
[1772750840533,0.49257224,89.248,89.204,0.49563192]
[1772750843262,0.49257224,89.246,89.206,0.49563192]
[1772750846932,0.49257224,89.244,89.208,0.49563192]
[1772750849246,11.66550333,89.243,89.21,0.48327799]
[1772750849446,0.46014269,89.242,89.21,0.48327799]
[1772750851943,0.4944853,89.248,89.212,0.47084737]
[1772750852148,0.4944853,89.244,89.212,0.47084737]
[1772750856644,0.4944853,89.242,89.214,0.47084737]
[1772750862071,0.4944853,89.24,89.216,0.47084737]
[1772750868963,11.2058629,89.239,89.218,0.47084737]
[1772750869268,0.4944853,89.24,89.218,0.47084737]
[1772750869465,11.70026934,89.24,89.218,0.47084737]
[1772750869663,0.4944853,89.239,89.218,0.47084737]
[1772750870771,0.4944853,89.239,89.219,11.20837489]
[1772750870974,0.4944853,89.248,89.22,0.47084737]
[1772750871156,44.80122092,89.284,89.22,0.47084737]
[1772750871157,0.4944853,89.253,89.22,0.47084737]
[1772750872878,0.4944853,89.253,89.221,11.20812364]
[1772750873061,0.4944853,89.253,89.222,0.47084737]
[1772750873462,11.69871601,89.252,89.222,0.47084737]
[1772750873679,0.4944853,89.251,89.222,0.47084737]
[1772750874874,0.4944853,89.251,89.224,0.47084737]
[1772750876375,0.4944853,89.249,89.213,11.20912871]
[1772750876573,0.4944853,89.249,89.193,11.21164216]
[1772750876780,0.4944853,89.249,89.196,3.69383402]
[1772750877464,4.2415263,89.24,89.192,1.25066095]
[1772750877658,0.4944853,89.219,89.143,39.26275759]
[1772750878073,0.4944853,89.219,89.147,8.80293285]
[1772750878480,0.4944853,89.217,89.156,0.47084737]
[1772750880583,0.48720112,89.215,89.158,0.47763464]
[1772750881274,0.48720112,89.215,89.159,0.47763464]
[1772750882666,0.48720112,89.213,89.161,0.47763464]
[1772750884760,0.48720112,89.211,89.161,0.47763464]
[1772750885489,0.48720112,89.21,89.161,0.47763464]
[1772750886889,0.48720112,89.208,89.161,11.69322318]